lending/lending_fUSD_20250224
["ID","MTS","AMOUNT","RATE_DAILY","PERIOD"]
[354287908,1740393122386,-894.91,0.00018,2]
[354287909,1740393122396,-835.59,0.00018,2]
[354287910,1740393122406,-1034.89,0.00018,2]
[354287911,1740393122417,-1083.32,0.00018,2]
[354287912,1740393122427,-649.75,0.00018,2]
[354287913,1740393122437,-547.93,0.00018,2]
[354287914,1740393122446,-689.58,0.00018,2]
[354287915,1740393122456,-685.53,0.00018,2]
[354287916,1740393122466,-500.0,0.00018,2]
[354287917,1740393122475,-248.57156415,0.00018,2]
[354287918,1740393122486,-770.75,0.00018,2]
[354287919,1740393122495,-596.16,0.00018,2]
[354287920,1740393122504,-1066.15,0.00018,2]
[354287921,1740393122514,-939.56,0.00018,2]
[354287922,1740393122523,-535.53,0.00018,2]
[354287923,1740393122532,-1713.16,0.00018,2]
[354287924,1740393122542,-999.11,0.00018,2]
[354287925,1740393122551,-545.3,0.00018,2]
[354287926,1740393122560,-988.44,0.00018,2]
[354287927,1740393122569,-1771.19,0.00018,2]
[354287928,1740393122578,-1914.59,0.00018,2]
[354287929,1740393122587,-4053.22,0.00018,2]
[354287930,1740393122598,-857.92,0.00018,2]
[354287931,1740393122607,-1114.15,0.00018,2]
[354287932,1740393122617,-507.52,0.00018,2]
[354287933,1740393122626,-2047.21,0.00018,2]
[354287934,1740393122636,-760.3,0.00018,2]
[354287935,1740393122646,-1134.98,0.00018,2]
[354287936,1740393122655,-1537.05,0.00018,2]
[354287937,1740393122665,-2359.95,0.00018,2]
[354287938,1740393122674,-1103.35,0.00018,2]
[354287939,1740393122684,-4184.04,0.00018,2]
[354287940,1740393122694,-1851.33,0.00018,2]
[354287941,1740393122704,-2354.25,0.00018,2]
[354287942,1740393122714,-613.1,0.00018,2]
[354287943,1740393122723,-971.17,0.00018,2]
[354287944,1740393122734,-3563.69,0.00018,2]
[354287945,1740393122744,-2009.96,0.00018,2]
[354287946,1740393122754,-390.26456016,0.00018,2]
[354287947,1740393122764,-1543.4,0.00018,2]
[354287948,1740393122774,-533.77,0.00018,2]
[354287949,1740393122784,-2242.87,0.00018,2]
[354287950,1740393122794,-633.74,0.00018,2]
[354287951,1740393122804,-1803.65,0.00018,2]
[354287952,1740393122815,-311.37529003,0.00018,2]
[354287953,1740393122824,-2187.68,0.00018,2]
[354287954,1740393122834,-728.65,0.00018,2]
[354287955,1740393122844,-6441.69,0.00018,2]
[354287956,1740393122854,-530.59,0.00018,2]
[354287957,1740393122866,-552.52,0.00018,2]
[354287958,1740393122875,-1823.33,0.00018,2]
[354287959,1740393122885,-580.19,0.00018,2]
[354287960,1740393122895,-2359.28,0.00018,2]
[354287961,1740393122904,-500.0,0.00018,2]
[354287962,1740393122914,-6310.46,0.00018,2]
[354287963,1740393122924,-1754.56,0.00018,2]
[354287964,1740393122933,-1453.83,0.00018,2]
[354287965,1740393122945,-2395.13,0.00018,2]
[354287966,1740393122954,-500.0,0.00018,2]
[354287967,1740393122963,-1729.98,0.00018,2]
[354287968,1740393122972,-1530.26,0.00018,2]
[354287969,1740393122981,-523.34,0.00018,2]
[354287970,1740393122991,-1888.7,0.00018,2]
[354287971,1740393123000,-887.15,0.00018,2]
[354287972,1740393123010,-561.68,0.00018,2]
[354287973,1740393123019,-1893.25,0.00018,2]
[354287974,1740393123029,-1229.83,0.00018,2]
[354287975,1740393123039,-1592.71,0.00018,2]
[354287976,1740393123049,-2122.57,0.00018,2]
[354287977,1740393123059,-1352.31,0.00018,2]
[354287978,1740393123070,-1563.39,0.00018,2]
[354287979,1740393123080,-500.0,0.00018,2]
[354287980,1740393123089,-3181.44,0.00018,2]
[354287981,1740393123101,-931.35,0.00018,2]
[354287982,1740393123111,-1364.19,0.00018,2]
[354287983,1740393123121,-1399.69,0.00018,2]
[354287984,1740393123132,-1158.15,0.00018,2]
[354287985,1740393123142,-947.59,0.00018,2]
[354287986,1740393123153,-1055.82,0.00018,2]
[354287987,1740393123164,-1743.38,0.00018,2]
[354287988,1740393123175,-1124.16,0.00018,2]
[354287989,1740393123186,-1245.15,0.00018,2]
[354287990,1740393123197,-862.87,0.00018,2]
[354287991,1740393123207,-737.22,0.00018,2]
[354287992,1740393123218,-3379.84,0.00018,2]
[354287993,1740393123228,-2190.52,0.00018,2]
[354287994,1740393123239,-2255.32,0.00018,2]
[354287995,1740393123249,-1993.18,0.00018,2]
[354287996,1740393123259,-2112.38,0.00018,2]
[354287997,1740393123269,-1406.66,0.00018,2]
[354287998,1740393123279,-511.28,0.00018,2]
[354287999,1740393123289,-1338.87,0.00018,2]
[354288000,1740393123299,-1163.78,0.00018,2]
[354288001,1740393123309,-899.89,0.00018,2]
[354288002,1740393123319,-2575.6,0.00018,2]
[354288003,1740393123329,-1931.36,0.00018,2]
[354288004,1740393123339,-3875.26,0.00018,2]
[354288005,1740393123351,-714.88,0.00018,2]
[354288006,1740393123361,-4627.1,0.00018,2]
[354288007,1740393123371,-651.74,0.00018,2]
[354288008,1740393123382,-2331.1,0.00018,2]
[354288009,1740393123392,-794.55,0.00018,2]
[354288010,1740393123401,-811.87,0.00018,2]
[354288011,1740393123411,-1360.35,0.00018,2]
[354288012,1740393123421,-757.29,0.00018,2]
[354288013,1740393123430,-1905.52,0.00018,2]
[354288014,1740393123439,-500.0,0.00018,2]
[354288015,1740393123448,-1012.51,0.00018,2]
[354288016,1740393123457,-1832.68,0.00018,2]
[354288017,1740393123466,-500.0,0.00018,2]
[354288018,1740393123476,-1130.11,0.00018,2]
[354288019,1740393123485,-500.0,0.00018,2]
[354288020,1740393123495,-1435.16,0.00018,2]
[354288021,1740393123504,-500.0,0.00018,2]
[354288022,1740393123514,-2153.01,0.00018,2]
[354288023,1740393123523,-2176.8,0.00018,2]
[354288024,1740393123532,-1895.66,0.00018,2]
[354288025,1740393123542,-683.14,0.00018,2]
[354288026,1740393123551,-1239.34,0.00018,2]
[354288027,1740393123561,-2117.99,0.00018,2]
[354288028,1740393123570,-2225.26,0.00018,2]
[354288029,1740393123579,-1435.64,0.00018,2]
[354288030,1740393123589,-876.4,0.00018,2]
[354288031,1740393123601,-1250.73,0.00018,2]
[354288032,1740393123610,-1238.73,0.00018,2]
[354288033,1740393123620,-1448.82,0.00018,2]
[354288034,1740393123631,-1222.74,0.00018,2]
[354288035,1740393123641,-500.0,0.00018,2]
[354288036,1740393123653,-500.0,0.00018,2]
[354288037,1740393123663,-2133.06,0.00018,2]
[354288038,1740393123673,-902.39,0.00018,2]
[354288039,1740393123683,-2952.34,0.00018,2]
[354288040,1740393123692,-637.55,0.00018,2]
[354288041,1740393123702,-1714.23,0.00018,2]
[354288042,1740393123712,-1345.12,0.00018,2]
[354288043,1740393123722,-1346.53,0.00018,2]
[354288044,1740393123732,-1153.09,0.00018,2]
[354288045,1740393123741,-500.0,0.00018,2]
[354288046,1740393123751,-1050.72,0.00018,2]
[354288047,1740393123761,-1549.23,0.00018,2]
[354288048,1740393123771,-505.98,0.00018,2]
[354288049,1740393123781,-2116.78,0.00018,2]
[354288050,1740393123792,-1323.73,0.00018,2]
[354288051,1740393123802,-1976.05,0.00018,2]
[354288052,1740393123812,-968.02,0.00018,2]
[354288053,1740393123822,-2709.27,0.00018,2]
[354288054,1740393123832,-1417.13,0.00018,2]
[354288055,1740393123842,-649.11,0.00018,2]
[354288056,1740393123853,-517.98,0.00018,2]
[354288057,1740393123868,-1383.1,0.00018,2]
[354288058,1740393123877,-575.9,0.00018,2]
[354288059,1740393123887,-639.53,0.00018,2]
[354288060,1740393123896,-2137.13,0.00018,2]
[354288061,1740393123906,-1329.85,0.00018,2]
[354288062,1740393123916,-2522.02,0.00018,2]
[354288063,1740393123925,-500.0,0.00018,2]
[354288064,1740393123935,-1057.9,0.00018,2]
[354288065,1740393123945,-152.0,0.00018025,10]
[354288066,1740393123955,-1389.13,0.00018048,2]
[354288067,1740393123963,-78634.96197852,0.00018048,3]
[354288068,1740393123973,-927.18,0.00018075,2]
[354288069,1740393123981,-567.68,0.00018082,2]
[354288070,1740393123990,-931.01,0.00018082,2]
[354288071,1740393124000,-500.0,0.00018082,2]
[354288072,1740393124010,-500.0,0.00018082,2]
[354288073,1740393124021,-500.0,0.00018082,2]
[354288074,1740393124030,-457.51111674,0.00018082,2]
[354288075,1740393124040,-242.00437839,0.00018082,2]
[354288076,1740393124050,-513.04,0.00018082,2]
[354288077,1740393124059,-705.82,0.00018082,2]
[354288078,1740393124068,-500.0,0.00018082,2]
[354288079,1740393124078,-568.69,0.00018082,2]
[354288080,1740393124087,-613.91,0.00018082,2]
[354288081,1740393124096,-829.52,0.00018082,2]
[354288082,1740393124106,-614.79,0.00018082,2]
[354288083,1740393124116,-579.34,0.00018082,2]
[354288084,1740393124125,-656.83,0.00018082,2]
[354288085,1740393124134,-801.72,0.00018082,2]
[354288086,1740393124144,-778.26,0.00018082,2]
[354288087,1740393124153,-812.09,0.00018082,2]
[354288088,1740393124163,-563.47,0.00018082,2]
[354288089,1740393124172,-314.34766237,0.00018082,2]
[354288090,1740393124182,-594.42,0.00018082,2]
[354288091,1740393124191,-1017.59,0.00018082,2]
[354288092,1740393124201,-1173.0,0.00018082,2]
[354288093,1740393124211,-985.36,0.00018082,2]
[354288094,1740393124221,-714.1,0.00018082,2]
[354288095,1740393124231,-601.34,0.00018082,2]
[354288096,1740393124240,-1166.36,0.00018082,2]
[354288097,1740393124250,-435.55271298,0.00018082,2]
[354288098,1740393124259,-655.58,0.00018082,2]
[354288099,1740393124268,-568.87,0.00018082,2]
[354288100,1740393124277,-497.66385639,0.00018082,2]
[354288101,1740393124286,-500.0,0.00018082,2]
[354288102,1740393124295,-817.86,0.00018082,2]
[354288103,1740393124304,-500.0,0.00018082,2]
[354288104,1740393124314,-554.61,0.00018082,2]
[354288105,1740393124324,-607.13,0.00018082,2]
[354288106,1740393124334,-587.42,0.00018082,2]
[354288107,1740393124344,-299.279106,0.00018082,2]
[354288108,1740393124355,-500.0,0.00018082,2]
[354288109,1740393124365,-976.63,0.00018082,2]
[354288110,1740393124375,-758.07,0.00018082,2]
[354288111,1740393124385,-327.093108,0.00018082,2]
[354288112,1740393124395,-912.3,0.00018082,2]
[354288113,1740393124405,-966.44,0.00018082,2]
[354288114,1740393124415,-571.99,0.00018082,2]
[354288115,1740393124424,-583.89,0.00018082,2]
[354288116,1740393124434,-508.91,0.00018082,2]
[354288117,1740393124444,-825.69,0.00018082,2]
[354288118,1740393124454,-793.11,0.00018082,2]
[354288119,1740393124463,-568.54,0.00018082,2]
[354288120,1740393124473,-688.09,0.00018082,2]
[354288121,1740393124482,-827.28,0.00018082,2]
[354288122,1740393124491,-154.80727975,0.00018082,2]
[354288123,1740393124500,-501.11,0.00018082,2]
[354288124,1740393124509,-571.55,0.00018082,2]
[354288125,1740393124519,-590.2,0.00018082,2]
[354288126,1740393124529,-500.0,0.00018082,2]
[354288127,1740393124539,-500.0,0.00018082,2]
[354288128,1740393124549,-865.78,0.00018082,2]
[354288129,1740393124558,-792.11,0.00018082,2]
[354288130,1740393124568,-502.07,0.00018082,2]
[354288131,1740393124577,-732.07,0.00018082,2]
[354288132,1740393124586,-536.67,0.00018082,2]
[354288133,1740393124596,-772.46,0.00018082,2]
[354288134,1740393124605,-994.92,0.00018082,2]
[354288135,1740393124615,-719.27,0.00018082,2]
[354288136,1740393124624,-500.0,0.00018082,2]
[354288137,1740393124634,-732.94,0.00018082,2]
[354288138,1740393124643,-894.91,0.00018082,2]
[354288139,1740393124652,-835.59,0.00018082,2]
[354288140,1740393124662,-1034.89,0.00018082,2]
[354288141,1740393124733,-1083.32,0.00018082,2]
[354288142,1740393124744,-649.75,0.00018082,2]
[354288143,1740393124754,-547.93,0.00018082,2]
[354288144,1740393124764,-689.58,0.00018082,2]
[354288145,1740393124774,-685.53,0.00018082,2]
[354288146,1740393124783,-500.0,0.00018082,2]
[354288147,1740393124793,-770.75,0.00018082,2]
[354288148,1740393124804,-596.16,0.00018082,2]
[354288149,1740393124814,-1066.15,0.00018082,2]
[354288150,1740393124823,-939.56,0.00018082,2]
[354288151,1740393124832,-535.53,0.00018082,2]
[354288152,1740393124842,-1713.16,0.00018082,2]
[354288153,1740393124854,-999.11,0.00018082,2]
[354288154,1740393124865,-545.3,0.00018082,2]
[354288155,1740393124876,-988.44,0.00018082,2]
[354288156,1740393124885,-1771.19,0.00018082,2]
[354288157,1740393124895,-1914.59,0.00018082,2]
[354288158,1740393124905,-4053.22,0.00018082,2]
[354288159,1740393124915,-857.92,0.00018082,2]
[354288160,1740393124924,-1114.15,0.00018082,2]
[354288161,1740393124934,-507.52,0.00018082,2]
[354288162,1740393124944,-2047.21,0.00018082,2]
[354288163,1740393124953,-760.3,0.00018082,2]
[354288164,1740393124963,-1134.98,0.00018082,2]
[354288165,1740393124972,-1537.05,0.00018082,2]
[354288166,1740393124981,-2359.95,0.00018082,2]
[354288167,1740393124991,-1103.35,0.00018082,2]
[354288168,1740393125000,-4184.04,0.00018082,2]
[354288169,1740393125010,-1851.33,0.00018082,2]
[354288170,1740393125020,-2354.25,0.00018082,2]
[354288171,1740393125030,-613.1,0.00018082,2]
[354288172,1740393125039,-971.17,0.00018082,2]
[354288173,1740393125049,-3563.69,0.00018082,2]
[354288174,1740393125059,-2009.96,0.00018082,2]
[354288175,1740393125067,-1543.4,0.00018082,2]
[354288176,1740393125077,-533.77,0.00018082,2]
[354288177,1740393125086,-2242.87,0.00018082,2]
[354288178,1740393125097,-633.74,0.00018082,2]
[354288179,1740393125107,-1803.65,0.00018082,2]
[354288180,1740393125116,-2187.68,0.00018082,2]
[354288181,1740393125126,-728.65,0.00018082,2]
[354288182,1740393125135,-6441.69,0.00018082,2]
[354288183,1740393125145,-530.59,0.00018082,2]
[354288184,1740393125154,-552.52,0.00018082,2]
[354288185,1740393125164,-1823.33,0.00018082,2]
[354288186,1740393125174,-580.19,0.00018082,2]
[354288187,1740393125183,-2359.28,0.00018082,2]
[354288188,1740393125192,-500.0,0.00018082,2]
[354288189,1740393125201,-6310.46,0.00018082,2]
[354288190,1740393125210,-1754.56,0.00018082,2]
[354288191,1740393125221,-1453.83,0.00018082,2]
[354288192,1740393125230,-2395.13,0.00018082,2]
[354288193,1740393125239,-500.0,0.00018082,2]
[354288194,1740393125249,-1729.98,0.00018082,2]
[354288195,1740393125258,-1530.26,0.00018082,2]
[354288196,1740393125267,-523.34,0.00018082,2]
[354288197,1740393125277,-1888.7,0.00018082,2]
[354288198,1740393125286,-887.15,0.00018082,2]
[354288199,1740393125295,-561.68,0.00018082,2]
[354288200,1740393125304,-1893.25,0.00018082,2]
[354288201,1740393125313,-1229.83,0.00018082,2]
[354288202,1740393125323,-1592.71,0.00018082,2]
[354288203,1740393125333,-2122.57,0.00018082,2]
[354288204,1740393125343,-1352.31,0.00018082,2]
[354288205,1740393125354,-1563.39,0.00018082,2]
[354288206,1740393125364,-500.0,0.00018082,2]
[354288207,1740393125374,-3181.44,0.00018082,2]
[354288208,1740393125384,-931.35,0.00018082,2]
[354288209,1740393125393,-1364.19,0.00018082,2]
[354288210,1740393125402,-1399.69,0.00018082,2]
[354288211,1740393125412,-1158.15,0.00018082,2]
[354288212,1740393125421,-947.59,0.00018082,2]
[354288213,1740393125431,-1055.82,0.00018082,2]
[354288214,1740393125440,-1743.38,0.00018082,2]
[354288215,1740393125449,-1245.15,0.00018082,2]
[354288216,1740393125458,-1124.16,0.00018082,2]
[354288217,1740393125467,-862.87,0.00018082,2]
[354288218,1740393125476,-737.22,0.00018082,2]
[354288219,1740393125485,-3379.84,0.00018082,2]
[354288220,1740393125494,-2190.52,0.00018082,2]
[354288221,1740393125503,-2255.32,0.00018082,2]
[354288222,1740393125512,-1993.18,0.00018082,2]
[354288223,1740393125522,-2112.38,0.00018082,2]
[354288224,1740393125530,-1406.66,0.00018082,2]
[354288225,1740393125539,-511.28,0.00018082,2]
[354288226,1740393125549,-1338.87,0.00018082,2]
[354288227,1740393125558,-1163.78,0.00018082,2]
[354288228,1740393125567,-899.89,0.00018082,2]
[354288229,1740393125576,-2575.6,0.00018082,2]
[354288230,1740393125585,-1931.36,0.00018082,2]
[354288231,1740393125596,-3875.26,0.00018082,2]
[354288232,1740393125605,-714.88,0.00018082,2]
[354288233,1740393125615,-4627.1,0.00018082,2]
[354288234,1740393125624,-651.74,0.00018082,2]
[354288235,1740393125633,-2331.1,0.00018082,2]
[354288236,1740393125642,-794.55,0.00018082,2]
[354288237,1740393125651,-811.87,0.00018082,2]
[354288238,1740393125661,-1360.35,0.00018082,2]
[354288239,1740393125670,-757.29,0.00018082,2]
[354288240,1740393125679,-1905.52,0.00018082,2]
[354288241,1740393125688,-1012.51,0.00018082,2]
[354288242,1740393125697,-500.0,0.00018082,2]
[354288243,1740393125706,-1832.68,0.00018082,2]
[354288244,1740393125716,-500.0,0.00018082,2]
[354288245,1740393125726,-1130.11,0.00018082,2]
[354288246,1740393125735,-500.0,0.00018082,2]
[354288247,1740393125745,-1435.16,0.00018082,2]
[354288248,1740393125754,-500.0,0.00018082,2]
[354288249,1740393125764,-2153.01,0.00018082,2]
[354288250,1740393125774,-2176.8,0.00018082,2]
[354288251,1740393125783,-1895.66,0.00018082,2]
[354288252,1740393125793,-683.14,0.00018082,2]
[354288253,1740393125802,-1239.34,0.00018082,2]
[354288254,1740393125812,-2117.99,0.00018082,2]
[354288255,1740393125821,-2225.26,0.00018082,2]
[354288256,1740393125831,-1019.26779715,0.00018082,6]
[354288257,1740393125840,-1435.64,0.00018082,2]
[354288258,1740393125851,-876.4,0.00018082,2]
[354288259,1740393125860,-1250.73,0.00018082,2]
[354288260,1740393125873,-1238.73,0.00018082,2]
[354288261,1740393125883,-1448.82,0.00018082,2]
[354288262,1740393125892,-1222.74,0.00018082,2]
[354288263,1740393125903,-500.0,0.00018082,2]
[354288264,1740393125912,-419.60516721,0.00018082,2]
[354288265,1740393125921,-2133.06,0.00018082,2]
[354288266,1740393125931,-902.39,0.00018082,2]
[354288267,1740393125941,-2952.34,0.00018082,2]
[354288268,1740393125951,-637.55,0.00018082,2]
[354288269,1740393125960,-1714.23,0.00018082,2]
[354288270,1740393125969,-1345.12,0.00018082,2]
[354288271,1740393125978,-1346.53,0.00018082,2]
[354288272,1740393125987,-1153.09,0.00018082,2]
[354288273,1740393125996,-500.0,0.00018082,2]
[354288274,1740393126006,-1050.72,0.00018082,2]
[354288275,1740393126015,-1549.23,0.00018082,2]
[354288276,1740393126024,-2116.78,0.00018082,2]
[354288277,1740393126033,-1323.73,0.00018082,2]
[354288278,1740393126042,-1976.05,0.00018082,2]
[354288279,1740393126051,-968.02,0.00018082,2]
[354288280,1740393126060,-2709.27,0.00018082,2]
[354288281,1740393126070,-1417.13,0.00018082,2]
[354288282,1740393126079,-649.11,0.00018082,2]
[354288283,1740393126087,-517.98,0.00018082,2]
[354288284,1740393126096,-1383.1,0.00018082,2]
[354288285,1740393126105,-575.9,0.00018082,2]
[354288286,1740393126114,-639.53,0.00018082,2]
[354288287,1740393126123,-2137.13,0.00018082,2]
[354288288,1740393126132,-1329.85,0.00018082,2]
[354288289,1740393126141,-2522.02,0.00018082,2]
[354288290,1740393126150,-500.0,0.00018082,2]
[354288291,1740393126159,-1057.9,0.00018082,2]
[354288292,1740393126168,-200.0,0.00018082,2]
[354288293,1740393126177,-295.0037,0.00018088,7]
[354288294,1740393126186,-1703.06201578,0.000181,2]
[354288295,1740393126196,-292773.24839112,0.000181,2]
[354288296,1740393126205,-1000.0,0.00018109,2]
[354288297,1740393126214,-559.51,0.00018118,7]
[354288298,1740393126223,-559.51,0.00018118,7]
[354288299,1740393126233,-567.68,0.00018164,2]
[354288300,1740393126242,-500.0,0.00018164,2]
[354288301,1740393126251,-500.0,0.00018164,2]
[354288302,1740393126260,-236.46153106,0.00018164,2]
[354288303,1740393126269,-513.04,0.00018164,2]
[354288304,1740393126277,-705.82,0.00018164,2]
[354288305,1740393126286,-500.0,0.00018164,2]
[354288306,1740393126295,-568.69,0.00018164,2]
[354288307,1740393126304,-613.91,0.00018164,2]
[354288308,1740393126313,-829.52,0.00018164,2]
[354288309,1740393126322,-614.79,0.00018164,2]
[354288310,1740393126331,-579.34,0.00018164,2]
[354288311,1740393126340,-656.83,0.00018164,2]
[354288312,1740393126351,-801.72,0.00018164,2]
[354288313,1740393126360,-778.26,0.00018164,2]
[354288314,1740393126370,-812.09,0.00018164,2]
[354288315,1740393126379,-563.47,0.00018164,2]
[354288316,1740393126388,-594.42,0.00018164,2]
[354288317,1740393126397,-1017.59,0.00018164,2]
[354288318,1740393126407,-1173.0,0.00018164,2]
[354288319,1740393126416,-985.36,0.00018164,2]
[354288320,1740393126425,-714.1,0.00018164,2]
[354288321,1740393126434,-601.34,0.00018164,2]
[354288322,1740393126443,-1166.36,0.00018164,2]
[354288323,1740393126452,-655.58,0.00018164,2]
[354288324,1740393126460,-568.87,0.00018164,2]
[354288325,1740393126470,-359.89519547,0.00018164,2]
[354288326,1740393126479,-817.86,0.00018164,2]
[354288327,1740393126487,-500.0,0.00018164,2]
[354288328,1740393126496,-554.61,0.00018164,2]
[354288329,1740393126505,-607.13,0.00018164,2]
[354288330,1740393126514,-587.42,0.00018164,2]
[354288331,1740393126523,-299.279106,0.00018164,2]
[354288332,1740393126533,-500.0,0.00018164,2]
[354288333,1740393126543,-976.63,0.00018164,2]
[354288334,1740393126552,-758.07,0.00018164,2]
[354288335,1740393126561,-912.3,0.00018164,2]
[354288336,1740393126571,-327.093108,0.00018164,2]
[354288337,1740393126580,-966.44,0.00018164,2]
[354288338,1740393126589,-571.99,0.00018164,2]
[354288339,1740393126599,-583.89,0.00018164,2]
[354288340,1740393126608,-508.91,0.00018164,2]
[354288341,1740393126618,-825.69,0.00018164,2]
[354288342,1740393126627,-793.11,0.00018164,2]
[354288343,1740393126636,-568.54,0.00018164,2]
[354288344,1740393126645,-688.09,0.00018164,2]
[354288345,1740393126654,-827.28,0.00018164,2]
[354288346,1740393126663,-501.11,0.00018164,2]
[354288347,1740393126672,-571.55,0.00018164,2]
[354288348,1740393126681,-590.2,0.00018164,2]
[354288349,1740393126690,-500.0,0.00018164,2]
[354288350,1740393126700,-500.0,0.00018164,2]
[354288351,1740393126709,-865.78,0.00018164,2]
[354288352,1740393126718,-792.11,0.00018164,2]
[354288353,1740393126727,-502.07,0.00018164,2]
[354288354,1740393126736,-732.07,0.00018164,2]
[354288355,1740393126746,-536.67,0.00018164,2]
[354288356,1740393126755,-772.46,0.00018164,2]
[354288357,1740393126764,-994.92,0.00018164,2]
[354288358,1740393126774,-719.27,0.00018164,2]
[354288359,1740393126783,-500.0,0.00018164,2]
[354288360,1740393126792,-732.94,0.00018164,2]
[354288361,1740393126801,-894.91,0.00018164,2]
[354288362,1740393126810,-835.59,0.00018164,2]
[354288363,1740393126819,-1034.89,0.00018164,2]
[354288364,1740393126829,-1083.32,0.00018164,2]
[354288365,1740393126839,-649.75,0.00018164,2]
[354288366,1740393126848,-547.93,0.00018164,2]
[354288367,1740393126859,-689.58,0.00018164,2]
[354288368,1740393126869,-685.53,0.00018164,2]
[354288369,1740393126882,-500.0,0.00018164,2]
[354288370,1740393126891,-770.75,0.00018164,2]
[354288371,1740393126900,-596.16,0.00018164,2]
[354288372,1740393126910,-1066.15,0.00018164,2]
[354288373,1740393126919,-939.56,0.00018164,2]
[354288374,1740393126928,-535.53,0.00018164,2]
[354288375,1740393126937,-1713.16,0.00018164,2]
[354288376,1740393126947,-999.11,0.00018164,2]
[354288377,1740393126956,-545.3,0.00018164,2]
[354288378,1740393126965,-988.44,0.00018164,2]
[354288379,1740393126973,-1771.19,0.00018164,2]
[354288380,1740393126982,-1914.59,0.00018164,2]
[354288381,1740393126991,-4053.22,0.00018164,2]
[354288382,1740393127000,-857.92,0.00018164,2]
[354288383,1740393127009,-1114.15,0.00018164,2]
[354288384,1740393127018,-507.52,0.00018164,2]
[354288385,1740393127027,-2047.21,0.00018164,2]
[354288386,1740393127037,-760.3,0.00018164,2]
[354288387,1740393127046,-1134.98,0.00018164,2]
[354288388,1740393127055,-1537.05,0.00018164,2]
[354288389,1740393127063,-2359.95,0.00018164,2]
[354288390,1740393127072,-1103.35,0.00018164,2]
[354288391,1740393127081,-4184.04,0.00018164,2]
[354288392,1740393127090,-1851.33,0.00018164,2]
[354288393,1740393127101,-2354.25,0.00018164,2]
[354288394,1740393127111,-613.1,0.00018164,2]
[354288395,1740393127120,-971.17,0.00018164,2]
[354288396,1740393127129,-3563.69,0.00018164,2]
[354288397,1740393127138,-2009.96,0.00018164,2]
[354288398,1740393127147,-1543.4,0.00018164,2]
[354288399,1740393127160,-533.77,0.00018164,2]
[354288400,1740393127169,-2242.87,0.00018164,2]
[354288401,1740393127178,-633.74,0.00018164,2]
[354288402,1740393127188,-1803.65,0.00018164,2]
[354288403,1740393127197,-2187.68,0.00018164,2]
[354288404,1740393127206,-728.65,0.00018164,2]
[354288405,1740393127215,-6441.69,0.00018164,2]
[354288406,1740393127226,-530.59,0.00018164,2]
[354288407,1740393127235,-552.52,0.00018164,2]